[Event "Nordic Chess-ch 2019"]
[Site "Sarpsborg"]
[Date "2019.06.24"]
[Round "5.40"]
[White "Eriksen, Oddvar"]
[Black "Sather, Lars"]
[Result "1-0"]
[ECO "A43"]
[WhiteElo "1520"]
[BlackElo "1730"]
[Annotator "NA"]
[PlyCount "161"]
[EventDate "2019.06.21"]
[EventType "swiss"]
[EventCountry "NOR"]
[SourceTitle "playchess.com"]
[Source "ChessBase"]
[SourceQuality "1"]
[TimeControl "40/5400+30:1800+30"]

1. e4 {[%emt 0:00:13]} e6 {[%emt 0:00:00]} 2. d4 {[%emt 1:30:47]} c5 {[%emt 1:31:00]} 3. d5 {[%emt 0:00:00]} exd5 {[%emt 0:00:00]} 4. Qxd5 {[%emt 0:00:00]} Nf6 {[%emt 0:00:00]} 5. Bg5 {[%emt 0:00:00]} Nxd5 {[%emt 0:00:00]} 6. Bxd8 {[%emt 0:00:00]} Nb4 {[%emt 0:00:00]} 7. Bg5 {[%emt 0:02:30]} Nxc2+ {[%emt 0:02:30]} 8. Kd1 {[%emt 0:00:00]} Nxa1 {[%emt 0:00:00]} 9. Nc3 {[%emt 0:00:00]} Nc6 {[%emt 0:00:00]} 10. Nd5 {[%emt 0:00:00]} f6 {[%emt 0:00:00]} 11. Bf4 {[%emt 0:02:00]} Kd8 {[%emt 0:02:00]} 12. Bc7+ {[%emt 0:00:00]} Ke8 {[%emt 0:00:00]} 13. Bg3 {[%emt 0:00:00]} d6 {[%emt 0:00:00]} 14. Nc7+ {[%emt 0:01:30]} Kd8 {[%emt 0:01:30]} 15. Nxa8 {[%emt 0:00:30]} Nd4 {[%emt 0:00:30]} 16. Bd3 {[%emt 0:00:00]} Be6 {[%emt 0:00:00]} 17. b3 {[%emt 0:00:00]} b5 {[%emt 0:00:00]} 18. Ne2 {[%emt 0:00:00]} Nc6 {[%emt 0:00:00]} 19. Bxb5 {[%emt 0:00:00]} Nb4 {[%emt 0:00:00]} 20. Kd2 {[%emt 0:00:00]} Nac2 {[%emt 0:00:00]} 21. a3 {[%emt 0:00:00]} Nxa3 {[%emt 0:00:00]} 22. Ba4 {[%emt 0:00:00]} Kc8 {[%emt 0:00:00]} 23. Nf4 {[%emt 0:04:00]} Bf7 {[%emt 0:04:00]} 24. Re1 {[%emt 0:00:00]} Kb7 {[%emt 0:00:00]} 25. Nd5 {[%emt 0:01:00]} Nac2 {[%emt 0:01:00]} 26. Nac7 {[%emt 0:00:00]} Nxe1 {[%emt 0:00:00]} 27. Kxe1 {[%emt 0:00:00]} Nxd5 {[%emt 0:00:00]} 28. Nxd5 {[%emt 0:01:30]} Bxd5 {[%emt 0:01:30]} 29. exd5 {[%emt 0:00:30]} Be7 {[%emt 0:00:30]} 30. Kd2 {[%emt 0:00:30]} g5 {[%emt 0:00:30]} 31. Ke3 {[%emt 0:00:00]} f5 {[%emt 0:00:00]} 32. f4 {[%emt 0:01:00]} h6 {[%emt 0:01:00]} 33. Be1 {[%emt 0:00:30]} Bf6 {[%emt 0:00:30]} 34. g3 {[%emt 0:00:30]} Rh7 {[%emt 0:00:30]} 35. Kd3 {[%emt 0:00:00]} Rg7 {[%emt 0:00:00]} 36. Bd2 {[%emt 0:00:00]} Re7 {[%emt 0:00:00]} 37. Ba5 {[%emt 0:00:00]} Re4 {[%emt 0:00:00]} 38. Bc6+ {[%emt 0:00:00]} Kc8 {[%emt 0:00:00]} 39. Bd2 {[%emt 0:00:00]} Rb4 {[%emt 0:00:00]} 40. Bxb4 {[%emt 0:00:00]} cxb4 {[%emt 0:00:00]} 41. Kc4 {[%emt 0:33:30]} a5 {[%emt 0:33:30]} 42. Be8 {[%emt 0:00:30]} gxf4 {[%emt 0:00:30]} 43. gxf4 {[%emt 0:00:00]} Bd8 {[%emt 0:00:00]} 44. Bg6 {[%emt 0:01:00]} Kb7 {[%emt 0:01:00]} 45. Bxf5 {[%emt 0:00:30]} Kb6 {[%emt 0:00:30]} 46. Bc2 {[%emt 0:00:30]} Bf6 {[%emt 0:00:30]} 47. Kd3 {[%emt 0:00:30]} Kc5 {[%emt 0:00:30]} 48. Ke4 {[%emt 0:00:00]} Bh4 {[%emt 0:00:00]} 49. h3 {[%emt 0:00:00]} Bg3 {[%emt 0:00:00]} 50. f5 {[%emt 0:00:00]} Be5 {[%emt 0:00:00]} 51. h4 {[%emt 0:02:00]} Bf6 {[%emt 0:00:00]} 52. h5 {[%emt 0:00:00]} Kb6 {[%emt 0:00:00]} 53. Kd3 {[%emt 0:00:00]} Kc5 {[%emt 0:00:00]} 54. Ke4 {[%emt 0:00:00]} Bd8 {[%emt 0:00:00]} 55. Bd1 {[%emt 0:00:00]} a4 {[%emt 0:00:00]} 56. bxa4 {[%emt 0:02:30]} Kc4 {[%emt 0:04:30]} 57. a5 {[%emt 0:00:00]} Bxa5 {[%emt 0:00:00]} 58. f6 {[%emt 0:01:00]} Bd8 {[%emt 0:01:00]} 59. f7 {[%emt 0:00:30]} Be7 {[%emt 0:00:30]} 60. Be2+ {[%emt 0:00:30]} Kc3 {[%emt 0:00:30]} 61. Bd3 {[%emt 0:00:30]} Kb2 {[%emt 0:00:30]} 62. Kf5 {[%emt 0:00:30]} Kc3 {[%emt 0:00:30]} 63. Be4 {[%emt 0:00:30]} b3 {[%emt 0:00:30]} 64. Ke6 {[%emt 0:00:30]} Bf8 {[%emt 0:00:30]} 65. Bb1 {[%emt 0:00:00]} Kd4 {[%emt 0:00:00]} 66. Bg6 {[%emt 0:01:00]} b2 {[%emt 0:01:00]} 67. Bb1 {[%emt 0:00:00]} Kc5 {[%emt 0:00:00]} 68. Ba2 {[%emt 0:00:00]} Kd4 {[%emt 0:00:00]} 69. Kd7 {[%emt 0:01:30]} b1=Q {[%emt 0:01:30]} 70. Bxb1 {[%emt 0:00:30]} Kxd5 {[%emt 0:00:30]} 71. Ke8 {[%emt 0:00:30]} Bg7 {[%emt 0:00:30]} 72. f8=Q Bxf8 73. Kxf8 {[%emt 0:01:00]} Ke6 {[%emt 0:01:00]} 74. Kg7 {[%emt 0:00:30]} d5 {[%emt 0:00:30]} 75. Bg6 {[%emt 0:00:00]} d4 {[%emt 0:00:00]} 76. Kxh6 {[%emt 0:00:00]} Ke7 {[%emt 0:00:00]} 77. Kh7 {[%emt 0:00:00]} Kf8 {[%emt 0:00:00]} 78. h6 {[%emt 0:00:00]} d3 {[%emt 0:00:00]} 79. Bxd3 {[%emt 0:00:00]} Kf7 {[%emt 0:00:00]} 80. Bc4+ {[%emt 0:00:00]} Kf8 {[%emt 0:00:00]} 81. Kg6 {[%emt 0:00:00]} 1-0

[Event "Nordic Chess-ch 2019"]
[Site "Sarpsborg"]
[Date "2019.06.24"]
[Round "5.41"]
[White "Heikkila, Raine"]
[Black "Thorvlaksson, Baldvin"]
[Result "0-1"]
[ECO "A45"]
[WhiteElo "1663"]
[BlackElo "1523"]
[Annotator "NA"]
[PlyCount "93"]
[EventDate "2019.06.21"]
[EventType "swiss"]
[EventCountry "NOR"]
[SourceTitle "playchess.com"]
[Source "ChessBase"]
[SourceQuality "1"]
[TimeControl "40/5400+30:1800+30"]

1. d4 {[%emt 0:00:00]} Nf6 {[%emt 0:00:00]} 2. Nc3 {[%emt 0:00:00]} e6 {[%emt 0:00:00]} 3. a3 {[%emt 0:00:03]} d5 {[%emt 0:00:06]} 4. Bg5 {[%emt 0:00:07]} c5 {[%emt 0:00:15]} 5. e3 {[%emt 0:00:15]} Nc6 {[%emt 0:00:28]} 6. Nf3 {[%emt 0:00:16]} Bd6 {[%emt 0:00:31]} 7. h3 {[%emt 0:00:14]} O-O {[%emt 0:00:15]} 8. Qd2 {[%emt 0:00:41]} a6 {[%emt 0:00:25]} 9. Bd3 {[%emt 0:00:48]} b6 {[%emt 0:04:22]} 10. Bh4 {[%emt 0:00:13]} c4 {[%emt 0:00:50]} 11. Be2 {[%emt 0:00:17]} Bb7 {[%emt 0:01:45]} 12. O-O {[%emt 0:00:55]} Ne7 {[%emt 0:03:15]} 13. Ne5 {[%emt 0:05:08]} Nd7 {[%emt 0:06:04]} 14. f4 {[%emt 0:00:35]} f6 {[%emt 0:00:25]} 15. Nf3 {[%emt 0:00:47]} Ng6 {[%emt 0:02:04]} 16. Bg3 {[%emt 0:00:26]} Qc7 {[%emt 0:02:04]} 17. Nh2 {[%emt 0:00:56]} f5 {[%emt 0:07:19]} 18. Nf3 {[%emt 0:00:30]} b5 {[%emt 0:01:41]} 19. Na2 {[%emt 0:00:23]} Nf6 {[%emt 0:04:09]} 20. Qe1 {[%emt 0:01:46]} Ne4 {[%emt 0:03:18]} 21. Bh2 {[%emt 0:00:48]} Bc6 {[%emt 0:08:53]} 22. c3 {[%emt 0:00:14]} a5 {[%emt 0:03:45]} 23. Bd1 {[%emt 0:00:05]} Rfb8 {[%emt 0:02:45]} 24. Bc2 {[%emt 0:00:20]} Rb7 {[%emt 0:07:53]} 25. Bxe4 {[%emt 0:00:50]} dxe4 {[%emt 0:01:31]} 26. Ng5 {[%emt 0:01:20]} Qe7 {[%emt 0:02:39]} 27. h4 {[%emt 0:01:15]} h6 {[%emt 0:05:31]} 28. h5 {[%emt 0:00:37]} Nxf4 {[%emt 0:02:51]} 29. exf4 {[%emt 0:02:54]} hxg5 {[%emt 0:01:32]} 30. fxg5 {[%emt 0:00:01]} Bxh2+ {[%emt 0:00:22]} 31. Kxh2 {[%emt 0:00:08]} Qxg5 {[%emt 0:00:43]} 32. Qe2 {[%emt 0:00:10]} Be8 {[%emt 0:02:05]} 33. Rh1 {[%emt 0:01:17]} Bxh5 {[%emt 0:00:59]} 34. Qe1 {[%emt 0:00:39]} Kf7 {[%emt 0:01:04]} 35. Qg3 {[%emt 0:01:39]} Qxg3+ {[%emt 0:01:40]} 36. Kxg3 {[%emt 0:00:09]} Rh8 {[%emt 0:02:31]} 37. Kf4 {[%emt 0:00:50]} Kf6 {[%emt 0:00:20]} 38. g3 {[%emt 0:01:03]} g5+ {[%emt 0:00:17]} 39. Ke3 {[%emt 0:00:09]} Rbh7 {[%emt 0:00:07]} 40. Raf1 {[%emt 0:02:21]} Bf3 {[%emt 0:00:39]} 41. Rxh7 {[%emt 0:30:21]} Rxh7 {[%emt 0:30:05]} 42. Nc1 {[%emt 0:01:04]} Rh2 {[%emt 0:01:00]} 43. Rf2 {[%emt 0:03:18]} f4+ {[%emt 0:00:51]} 44. gxf4 {[%emt 0:00:40]} gxf4+ {[%emt 0:00:08]} 45. Kxf4 {[%emt 1:15:58]} Rxf2 {[%emt 0:23:03]} 46. b4 {[%emt 0:00:30]} cxb3 {[%emt 0:00:30]} 47. Nxb3 {[%emt 0:00:30] Ke5+} 0-1

[Event "Nordic Chess-ch 2019"]
[Site "Sarpsborg"]
[Date "2019.06.24"]
[Round "5.42"]
[White "Lilleng, Gunnar"]
[Black "Stabbetorp, Hans"]
[Result "0-1"]
[ECO "D02"]
[WhiteElo "1485"]
[BlackElo "1767"]
[Annotator "NA"]
[PlyCount "140"]
[EventDate "2019.06.21"]
[EventType "swiss"]
[EventCountry "NOR"]
[SourceTitle "playchess.com"]
[Source "ChessBase"]
[SourceQuality "1"]
[TimeControl "40/5400+30:1800+30"]

1. d4 {[%emt 0:00:00]} d5 {[%emt 0:00:00]} 2. c3 {[%emt 0:00:31]} Nf6 {[%emt 0:00:00]} 3. Bg5 {[%emt 0:02:04]} e6 {[%emt 0:00:17]} 4. Nf3 {[%emt 0:00:45]} h6 {[%emt 0:00:13]} 5. Bh4 {[%emt 0:00:21]} Be7 {[%emt 0:00:14]} 6. Nbd2 {[%emt 0:00:34]} Nbd7 {[%emt 0:01:37]} 7. e3 {[%emt 0:00:54]} c5 {[%emt 0:02:24]} 8. dxc5 {[%emt 0:01:42]} Bxc5 {[%emt 0:01:22]} 9. Bd3 {[%emt 0:03:04]} O-O {[%emt 0:03:36]} 10. O-O {[%emt 0:00:11]} b6 {[%emt 0:01:50]} 11. e4 {[%emt 0:06:56]} dxe4 {[%emt 0:06:00]} 12. Nxe4 {[%emt 0:09:19]} Be7 {[%emt 0:00:35]} 13. Nxf6+ {[%emt 0:08:14]} Bxf6 {[%emt 0:01:34]} 14. Bxf6 {[%emt 0:01:00]} Qxf6 {[%emt 0:00:32]} 15. Qe2 {[%emt 0:02:11]} Nc5 {[%emt 0:02:10]} 16. Rfe1 {[%emt 0:14:40]} Bb7 {[%emt 0:01:44]} 17. Bc2 {[%emt 0:46:04]} Bxf3 {[%emt 1:14:22]} 18. Qxf3 {[%emt 0:00:21]} Qxf3 {[%emt 0:00:11]} 19. gxf3 {[%emt 0:00:06]} Rad8 {[%emt 0:00:41]} 20. Rad1 {[%emt 0:00:28]} g5 {[%emt 0:04:41]} 21. Kf1 {[%emt 0:02:52]} Kg7 {[%emt 0:01:26]} 22. Rxd8 {[%emt 0:02:24]} Rxd8 {[%emt 0:00:14]} 23. Ke2 {[%emt 0:00:28]} Rd5 {[%emt 0:01:51]} 24. Rd1 {[%emt 0:02:59]} Rxd1 {[%emt 0:05:35]} 25. Bxd1 {[%emt 0:01:00]} Kg6 {[%emt 0:00:14]} 26. Ke3 {[%emt 0:01:12]} e5 {[%emt 1:01:19]} 27. Bc2+ {[%emt 0:34:36]} Kh5 {[%emt 0:00:01]} 28. b4 {[%emt 0:03:36]} Nb7 {[%emt 0:00:59]} 29. Ke4 {[%emt 0:29:24]} Kg6 {[%emt 0:17:11]} 30. Kxe5+ {[%emt 0:00:55]} Kg7 {[%emt 0:00:31]} 31. Kd5 {[%emt 0:02:59]} Nd8 {[%emt 0:00:55]} 32. Bf5 {[%emt 0:00:38]} Kf6 {[%emt 0:00:30]} 33. Bc8 {[%emt 0:01:23]} Ke7 {[%emt 0:01:42]} 34. a4 {[%emt 0:01:53]} f6 {[%emt 0:04:27]} 35. c4 {[%emt 0:00:21]} Nf7 {[%emt 0:00:38]} 36. c5 {[%emt 0:01:32]} bxc5 {[%emt 0:01:25]} 37. Kxc5 {[%emt 0:01:15]} Kd8 {[%emt 0:01:07]} 38. Bb7 {[%emt 0:02:21]} Kc7 {[%emt 0:00:34]} 39. Ba8 {[%emt 0:00:51]} Kb8 {[%emt 0:01:29]} 40. Bd5 {[%emt 0:01:04]} Ne5 {[%emt 0:01:15]} 41. Kd4 {[%emt 0:31:03]} Kc7 {[%emt 0:31:12]} 42. b5 {[%emt 0:00:34]} Kb6 {[%emt 0:00:29]} 43. Ke4 {[%emt 0:04:11]} Kc5 {[%emt 0:01:55]} 44. Bb3 {[%emt 0:03:18]} Kb4 {[%emt 0:00:36]} 45. Bd1 {[%emt 0:00:00]} Nc4 {[%emt 0:00:00]} 46. Kf5 {[%emt 0:00:00]} Nb2 {[%emt 0:00:00]} 47. Be2 {[%emt 0:00:00]} Nxa4 {[%emt 0:00:00]} 48. Kxf6 {[%emt 0:00:00]} Nc3 {[%emt 0:00:00]} 49. Bd3 {[%emt 0:00:00]} Nxb5 {[%emt 0:00:00]} 50. Kg6 {[%emt 0:00:00]} a5 {[%emt 0:00:00]} 51. Be4 {[%emt 0:00:00]} a4 {[%emt 0:00:00]} 52. Bd5 {[%emt 0:00:00]} Nd4 {[%emt 0:00:00]} 53. Kxh6 {[%emt 0:00:00]} a3 {[%emt 0:00:00]} 54. Kxg5 {[%emt 0:00:00]} Nb3 {[%emt 0:00:00]} 55. h4 {[%emt 0:00:00]} a2 {[%emt 0:00:00]} 56. h5 {[%emt 0:00:00]} a1=Q {[%emt 0:00:00]} 57. Be4 {[%emt 0:00:51]} Qg7+ {[%emt 0:00:00]} 58. Bg6 {[%emt 0:00:42]} Nd4 {[%emt 0:00:00]} 59. f4 {[%emt 0:06:42]} Ne6+ {[%emt 0:00:00]} 60. Kg4 {[%emt 0:06:16]} Qh6 {[%emt 0:00:00]} 61. f5 {[%emt 0:00:45]} Qg5+ {[%emt 0:00:00]} 62. Kf3 {[%emt 0:00:21]} Ng7 {[%emt 0:00:00]} 63. Ke4 {[%emt 0:00:13]} Nxh5 {[%emt 0:00:00]} 64. Bxh5 {[%emt 0:00:29]} Qxh5 {[%emt 0:00:00]} 65. f6 {[%emt 0:00:58]} Qf7 {[%emt 0:00:00]} 66. Ke5 {[%emt 0:06:07]} Kc5 {[%emt 0:00:00]} 67. f4 {[%emt 0:00:33]} Qe8+ {[%emt 0:00:00]} 68. Kf5 {[%emt 0:00:11]} Kd6 {[%emt 0:00:00]} 69. Kg5 {[%emt 0:00:08]} Ke6 {[%emt 0:00:00]} 70. f5+ {[%emt 0:00:15]} Ke5 {[%emt 0:44:26]} 0-1

[Event "Nordic Chess-ch 2019"]
[Site "Sarpsborg"]
[Date "2019.06.24"]
[Round "6.5"]
[White "Holm, Kristian Stuvik"]
[Black "Cederstam Barsk, Carl"]
[Result "1-0"]
[ECO "B01"]
[WhiteElo "2474"]
[BlackElo "2334"]
[Annotator "ChessBase"]
[PlyCount "79"]
[EventDate "2019.06.21"]
[EventType "swiss"]
[EventCountry "NOR"]
[SourceTitle "playchess.com"]
[Source "ChessBase"]
[SourceQuality "1"]
[TimeControl "40/5400+30:1800+30"]

1. e4 {[%emt 0:00:09]} d5 {[%emt 0:00:50]} 2. exd5 {[%emt 0:00:16]} Qxd5 {[%emt 0:00:07]} 3. Nc3 {[%emt 0:00:07]} Qd8 {[%emt 0:00:05]} 4. d4 {[%emt 0:03:54]} Nf6 {[%emt 0:00:30]} 5. Nf3 {[%emt 0:04:49]} g6 {[%emt 0:05:12]} 6. Bc4 {[%emt 0:01:22]} Bg7 {[%emt 0:00:14]} 7. O-O {[%emt 0:00:49]} O-O {[%emt 0:00:10]} 8. h3 {[%emt 0:03:58]} Nc6 {[%emt 0:05:37]} 9. Re1 {[%emt 0:09:11]} b6 {[%emt 0:05:01]} 10. a3 {[%emt 0:07:41]} Bb7 {[%emt 0:04:21]} 11. Bg5 {[%emt 0:01:41]} h6 {[%emt 0:14:32]} 12. Bf4 {[%emt 0:03:13]} e6 {[%emt 0:03:14]} 13. Qd3 {[%emt 0:01:00]} Ne7 {[%emt 0:04:25]} 14. Rad1 {[%emt 0:02:19]} Ned5 {[%emt 0:12:39]} 15. Nxd5 {[%emt 0:01:13]} Nxd5 {[%emt 0:10:50]} 16. Bg3 {[%emt 0:00:53]} Qc8 {[%emt 0:05:59]} 17. Ba2 {[%emt 0:04:31]} Ne7 {[%emt 0:04:53]} 18. Be5 {[%emt 0:02:39]} c5 {[%emt 0:02:19]} 19. dxc5 {[%emt 0:06:51]} Bxf3 {[%emt 0:02:46]} 20. Qxf3 {[%emt 0:02:59]} Qxc5 {[%emt 0:00:03]} 21. Bd6 {[%emt 0:08:04]} Qg5 {[%emt 0:00:01]} 22. c3 {[%emt 0:00:38]} Rfe8 {[%emt 0:03:01]} 23. Qf4 {[%emt 0:04:46]} Qb5 {[%emt 0:02:54]} 24. Qb4 {[%emt 0:00:45]} Qd7 {[%emt 0:00:49]} 25. Be5 {[%emt 0:01:40]} Qb7 {[%emt 0:01:27]} 26. Bxg7 {[%emt 0:00:54]} Nc6 {[%emt 0:01:56]} 27. Qe4 {[%emt 0:05:24]} Kxg7 {[%emt 0:00:03]} 28. Rd6 {[%emt 0:04:06]} Rac8 {[%emt 0:00:01]} 29. Red1 {[%emt 0:00:18]} Re7 {[%emt 0:06:14]} 30. Qd3 {[%emt 0:04:24]} Rcc7 {[%emt 0:01:50]} 31. b4 {[%emt 0:03:01]} Qc8 {[%emt 0:00:40]} 32. c4 {[%emt 0:00:31]} Qh8 {[%emt 0:00:33]} 33. Qe4 {[%emt 0:00:43]} Qc8 {[%emt 0:02:04]} 34. Qd3 {[%emt 0:03:03]} e5 {[%emt 0:00:39]} 35. Qd5 {[%emt 0:02:49]} g5 {[%emt 0:00:53]} 36. Bb1 {[%emt 0:01:16]} Re6 {[%emt 0:00:25]} 37. Qe4 {[%emt 0:00:17]} Kf8 {[%emt 0:00:27]} 38. Qh7 {[%emt 0:01:50]} Nd4 {[%emt 0:00:14]} 39. Bf5 {[%emt 0:01:13]} Ke7 {[%emt 0:00:47]} 40. Bxe6 {[%emt 0:00:40]} 1-0

[Event "Nordic Chess-ch 2019"]
[Site "Sarpsborg"]
[Date "2019.06.24"]
[Round "6.6"]
[White "Vestby-Ellingsen, Mads"]
[Black "Ogaard, Leif"]
[Result "1-0"]
[ECO "D32"]
[WhiteElo "2345"]
[BlackElo "2385"]
[Annotator "NA"]
[PlyCount "49"]
[EventDate "2019.06.21"]
[EventType "swiss"]
[EventCountry "NOR"]
[SourceTitle "playchess.com"]
[Source "ChessBase"]
[SourceQuality "1"]
[TimeControl "40/5400+30:1800+30"]

1. d4 {[%emt 0:00:00]} d5 {[%emt 0:00:07]} 2. c4 {[%emt 0:00:00]} e6 {[%emt 0:00:13]} 3. Nc3 {[%emt 0:00:00]} c5 {[%emt 0:01:30]} 4. cxd5 {[%emt 0:00:17]} exd5 {[%emt 0:00:10]} 5. Nf3 {[%emt 0:00:11]} Nc6 {[%emt 0:00:39]} 6. dxc5 {[%emt 0:00:18]} d4 {[%emt 0:01:16]} 7. Na4 {[%emt 0:00:13]} Bxc5 {[%emt 0:03:44]} 8. Nxc5 {[%emt 0:02:47]} Qa5+ {[%emt 0:00:08]} 9. Bd2 {[%emt 0:00:15]} Qxc5 {[%emt 0:00:09]} 10. Rc1 {[%emt 0:00:20]} Qb6 {[%emt 0:03:15]} 11. e3 {[%emt 0:00:19]} Nge7 {[%emt 0:01:14]} 12. Bc4 {[%emt 0:03:29]} O-O {[%emt 0:02:23]} 13. Nxd4 {[%emt 0:18:40]} Nxd4 {[%emt 0:04:43]} 14. exd4 {[%emt 0:01:35]} Qxb2 {[%emt 0:23:39]} 15. Bc3 {[%emt 0:04:25]} Qa3 {[%emt 0:03:08]} 16. O-O {[%emt 0:18:02]} Qd6 {[%emt 0:14:19]} 17. d5 {[%emt 0:04:50]} b5 {[%emt 0:04:47]} 18. Bb3 {[%emt 0:00:29]} a5 {[%emt 0:02:13]} 19. Re1 {[%emt 0:08:47]} Bd7 {[%emt 0:20:02]} 20. Be5 {[%emt 0:07:07]} Qb4 {[%emt 0:01:39]} 21. Rc7 {[%emt 0:12:51]} Rad8 {[%emt 0:05:35]} 22. a3 {[%emt 0:08:47]} Qxa3 {[%emt 0:00:55]} 23. d6 {[%emt 0:05:42]} Ng6 {[%emt 0:01:39]} 24. Bc3 {[%emt 0:01:33]} a4 {[%emt 0:00:41]} 25. Qd4 {[%emt 0:00:28]} 1-0

[Event "Nordic Chess-ch 2019"]
[Site "Sarpsborg"]
[Date "2019.06.24"]
[Round "6.7"]
[White "Tryggestad, Andreas Garberg"]
[Black "Lindgren, Philip"]
[Result "1-0"]
[ECO "E01"]
[WhiteElo "2324"]
[BlackElo "2384"]
[Annotator "NA"]
[PlyCount "55"]
[EventDate "2019.06.21"]
[EventType "swiss"]
[EventCountry "NOR"]
[SourceTitle "playchess.com"]
[Source "ChessBase"]
[SourceQuality "1"]
[TimeControl "40/5400+30:1800+30"]

1. d4 {[%emt 0:00:00]} Nf6 {[%emt 0:00:43]} 2. c4 {[%emt 0:00:00]} e6 {[%emt 0:00:06]} 3. Nf3 {[%emt 0:00:00]} d5 {[%emt 0:00:33]} 4. Nc3 {[%emt 0:00:00]} c6 {[%emt 0:02:43]} 5. g3 {[%emt 0:00:25]} dxc4 {[%emt 0:00:53]} 6. Bg2 {[%emt 0:00:06]} Nbd7 {[%emt 0:00:23]} 7. O-O {[%emt 0:00:12]} b5 {[%emt 0:04:19]} 8. e4 {[%emt 0:00:05]} Bb7 {[%emt 0:01:23]} 9. e5 {[%emt 0:01:45]} Nd5 {[%emt 0:01:29]} 10. Ng5 {[%emt 0:03:33]} Be7 {[%emt 0:02:45]} 11. Qh5 {[%emt 0:00:04]} g6 {[%emt 0:01:14]} 12. Qh6 {[%emt 0:00:09]} Bf8 {[%emt 0:01:24]} 13. Qh3 {[%emt 0:05:41]} Nxc3 {[%emt 0:13:27]} 14. bxc3 {[%emt 0:00:20]} Be7 {[%emt 0:05:31]} 15. Ne4 {[%emt 0:03:00]} Qc7 {[%emt 0:09:07]} 16. a4 {[%emt 0:02:42]} a6 {[%emt 0:07:27]} 17. Bg5 {[%emt 0:17:23]} Bxg5 {[%emt 0:04:08]} 18. Nxg5 {[%emt 0:00:04]} Nb6 {[%emt 0:06:26]} 19. Ne4 {[%emt 0:11:06]} O-O-O {[%emt 0:01:19]} 20. axb5 {[%emt 0:00:40]} axb5 {[%emt 0:03:54]} 21. Ra7 {[%emt 0:04:29]} Kb8 {[%emt 0:02:42]} 22. Rfa1 {[%emt 0:03:40]} Nc8 {[%emt 0:02:26]} 23. R7a3 {[%emt 0:00:26]} Rd5 {[%emt 0:04:14]} 24. Qh6 {[%emt 0:00:46]} Qe7 {[%emt 0:06:43]} 25. Qe3 {[%emt 0:04:53]} Nb6 {[%emt 0:03:57]} 26. Nf6 {[%emt 0:04:26]} Rdd8 {[%emt 0:01:05]} 27. d5 {[%emt 0:01:15]} Nxd5 {[%emt 0:01:57]} 28. Bxd5 {[%emt 0:01:04]} 1-0

[Event "Nordic Chess-ch 2019"]
[Site "Sarpsborg"]
[Date "2019.06.24"]
[Round "6.9"]
[White "Getz, Nicolai"]
[Black "Blauhut, Holger"]
[Result "1-0"]
[ECO "D30"]
[WhiteElo "2380"]
[BlackElo "2041"]
[Annotator "NA"]
[PlyCount "89"]
[EventDate "2019.06.21"]
[EventType "swiss"]
[EventCountry "NOR"]
[SourceTitle "playchess.com"]
[Source "ChessBase"]
[SourceQuality "1"]
[TimeControl "40/5400+30:1800+30"]

1. Nf3 {[%emt 0:00:00]} d5 {[%emt 0:00:00]} 2. g3 {[%emt 0:00:00]} Nf6 {[%emt 0:00:01]} 3. Bg2 {[%emt 0:00:00]} e6 {[%emt 0:00:35]} 4. O-O {[%emt 0:00:00]} Be7 {[%emt 0:00:08]} 5. b3 {[%emt 0:00:34]} O-O {[%emt 0:00:20]} 6. Bb2 {[%emt 0:00:07]} c5 {[%emt 0:03:07]} 7. c4 {[%emt 0:02:34]} Nc6 {[%emt 0:01:47]} 8. cxd5 {[%emt 0:03:20]} exd5 {[%emt 0:00:19]} 9. d4 {[%emt 0:00:20]} b6 {[%emt 0:10:51]} 10. Nc3 {[%emt 0:00:21]} Be6 {[%emt 0:00:54]} 11. Rc1 {[%emt 0:01:06]} Rc8 {[%emt 0:03:37]} 12. dxc5 {[%emt 0:00:19]} bxc5 {[%emt 0:00:07]} 13. Ng5 {[%emt 0:01:57]} d4 {[%emt 0:09:50]} 14. Nxe6 {[%emt 0:00:56]} fxe6 {[%emt 0:03:23]} 15. Na4 {[%emt 0:00:03]} Nb4 {[%emt 0:01:09]} 16. a3 {[%emt 0:00:47]} Nbd5 {[%emt 0:00:27]} 17. Qd3 {[%emt 0:02:07]} Nb6 {[%emt 0:01:32]} 18. Qa6 {[%emt 0:01:41]} Qd7 {[%emt 0:07:47]} 19. Nxb6 {[%emt 0:00:39]} axb6 {[%emt 0:00:12]} 20. b4 {[%emt 0:02:41]} Qd6 {[%emt 0:09:14]} 21. Bh3 {[%emt 0:04:30]} Ra8 {[%emt 0:01:48]} 22. bxc5 {[%emt 0:00:31]} bxc5 {[%emt 0:03:37]} 23. Bxe6+ {[%emt 0:00:11]} Kh8 {[%emt 0:00:07]} 24. Qxd6 {[%emt 0:00:33]} Bxd6 {[%emt 0:00:05]} 25. Rc2 {[%emt 0:00:27]} Rfb8 {[%emt 0:00:46]} 26. Rd1 {[%emt 0:01:50]} Ra6 {[%emt 0:01:13]} 27. Bc4 {[%emt 0:02:17]} Rab6 {[%emt 0:02:50]} 28. Ba1 {[%emt 0:00:31]} Ng4 {[%emt 0:02:59]} 29. a4 {[%emt 0:00:53]} Rf8 {[%emt 0:11:43]} 30. e3 {[%emt 0:08:15]} dxe3 {[%emt 0:01:38]} 31. f4 {[%emt 0:00:04]} Be7 {[%emt 0:02:57]} 32. Be2 {[%emt 0:04:55]} Nf2 {[%emt 0:02:13]} 33. Re1 {[%emt 0:00:15]} Rd8 {[%emt 0:02:30]} 34. Bc3 {[%emt 0:03:30]} Rbd6 {[%emt 0:03:03]} 35. a5 {[%emt 0:01:56]} Ne4 {[%emt 0:01:25]} 36. a6 {[%emt 0:00:36]} Nxc3 {[%emt 0:02:59]} 37. Rxc3 {[%emt 0:00:04]} Bf6 {[%emt 0:00:50]} 38. Ra3 {[%emt 0:00:14]} Ra8 {[%emt 0:01:18]} 39. a7 {[%emt 0:00:42]} Rd7 {[%emt 0:00:24]} 40. Rb1 {[%emt 0:00:06]} c4 {[%emt 0:00:45]} 41. Bf3 {[%emt 0:45:38]} e2 {[%emt 0:38:50]} 42. Kg2 {[%emt 0:00:48]} Rd2 {[%emt 0:00:00]} 43. Rb8+ {[%emt 0:00:00]} Rd8 {[%emt 0:00:00]} 44. Rxd8+ {[%emt 0:00:00]} Bxd8 {[%emt 0:00:00]} 45. Re3 {[%emt 0:00:00]} 1-0